fUST/lending_fUST_20251217
["ID","MTS","AMOUNT","RATE_DAILY","PERIOD"]
[398879723,1765960170145,-293.58778706,0.000124,2]
[398879724,1765960170166,-246.61278268,0.0001311,2]
[398879725,1765960170187,-44.84007775,0.00013562,2]
[398879758,1765960232176,-155.9,0.0001,2]
[398879760,1765960232186,-104.10511029,0.000107,2]
[398879762,1765960232197,-51.79488971,0.000107,2]
[398879765,1765960232206,-155.9,0.000114,2]
[398879767,1765960232215,-155.9,0.000121,2]
[398879770,1765960232223,-155.9,0.000127,2]
[398879773,1765960232234,-155.9,0.000134,2]
[398879775,1765960232250,-366.832,0.00013562,2]
[398879778,1765960232263,-373.17740298,0.00013562,2]
[398879782,1765960232272,-784.84948073,0.00013699,2]
[398879784,1765960232281,-506.34036418,0.00013699,2]
[398879785,1765960232290,-155.9,0.000141,2]
[398879787,1765960232299,-338.37236474,0.000144,2]
[398879789,1765960232307,-1000.0,0.00015393,2]
[398879790,1765960232316,-383.15694243,0.000164,2]
[398879792,1765960232325,-2000.0,0.00017794,3]
[398879794,1765960232334,-427.94152011,0.000184,2]
[398879795,1765960232343,-680.00744518,0.00018646,2]
[398879797,1765960232352,-498.28150935,0.00018672,2]
[398879799,1765960232361,-198.08824625,0.00018726,2]
[398879800,1765960232370,-1001.0,0.00018762,2]
[398879802,1765960232380,-212.0,0.00018856,2]
[398879804,1765960232390,-1200.0,0.00018856,2]
[398879805,1765960232399,-256.00172711,0.0001888,2]
[398879808,1765960232418,-967.64871745,0.00018894,4]
[398879863,1765960238199,-498.28150935,0.00018485,2]
[398879865,1765960238209,-1032.35128255,0.00018894,4]
[398879899,1765960238516,-302.60665372,0.000189,2]
[398879902,1765960238532,-40.85520028,0.00019,2]
[398880228,1765960244353,-125.4042745,0.00019,2]
[398880229,1765960244364,-171.17749052,0.00019,2]
[398880231,1765960244375,-153.41823498,0.00019,2]
[398880258,1765960352372,150.0,8.066e-05,2]
[398880259,1765960352769,150.0,8.799e-05,2]
[398880260,1765960418466,150.0,7.738e-05,2]
[398880261,1765960418870,150.0,8.441e-05,2]
[398880262,1765960550309,150.0,8.346e-05,2]
[398880263,1765960550727,150.0,9.104e-05,2]
[398880264,1765960618024,150.0,8.341e-05,2]
[398880265,1765960618063,150.0,9.099e-05,2]
[398880266,1765960684325,150.0,8.345e-05,2]
[398880267,1765960684834,150.0,9.104e-05,2]
[398880269,1765960751763,150.0,8.5e-05,2]
[398880270,1765960752158,150.0,9.273e-05,2]
[398880271,1765960818872,150.0,8.504e-05,2]
[398880272,1765960819276,150.0,9.277e-05,2]
[398880273,1765961026443,150.0,9.569e-05,2]
[398880274,1765961079192,150.0,7.689e-05,2]
[398880275,1765961079602,150.0,8.388e-05,2]
[398880276,1765961080063,150.0,9.087e-05,2]
[398880277,1765961148745,150.0,8.506e-05,2]
[398880278,1765961148917,150.0,9.28e-05,2]
[398880279,1765961184775,150.0,5.2e-07,2]
[398880280,1765961185810,150.0,5.2e-07,2]
[398880281,1765961186857,150.0,5.2e-07,2]
[398880282,1765961218697,150.0,7.665e-05,2]
[398880283,1765961219156,150.0,8.362e-05,2]
[398880284,1765961219648,150.0,9.058e-05,2]
[398880285,1765961225133,-150.0,9.755e-05,2]
[398880286,1765961225154,-231.11528644,9.796e-05,2]
[398880287,1765961225177,-80.9900597,0.00010452,2]
[398880288,1765961246123,-150.0,9.657e-05,2]
[398880289,1765961246147,-69.0099403,0.00010452,2]
[398880290,1765961246169,-150.0,0.00011149,2]
[398880291,1765961246192,-272.716038,0.00011796,2]
[398880292,1765961246213,-150.0,0.00011845,2]
[398880293,1765961246236,-150.0,0.00012542,2]
[398880294,1765961246256,-1200.0,0.00013272,2]
[398880295,1765961246274,-500.0,0.00013273,2]
[398880296,1765961246294,-376.66805027,0.00013273,2]
[398880346,1765961432203,-670.36515537,0.0001314,2]
[398880353,1765961432258,-503.80206899,0.0001314,2]
[398880355,1765961432268,-221.03865995,0.00013206,2]
[398880357,1765961432277,-124.91722564,0.00013273,2]
[398880359,1765961432287,-500.0,0.00013273,2]
[398880361,1765961432296,-500.0,0.00013273,2]
[398880363,1765961432305,-500.0,0.00013273,2]
[398880365,1765961432315,-549.24999872,0.00013273,2]
[398880367,1765961432324,-500.0,0.00013821,2]
[398880368,1765961432333,-669.0,0.00014094,2]
[398880370,1765961432342,-300.0,0.00014095,2]
[398880371,1765961432352,-300.0,0.00014095,2]
[398880372,1765961432362,-300.0,0.00014095,2]
[398880373,1765961432371,-300.0,0.00014095,2]
[398880374,1765961432380,-300.0,0.00014095,2]
[398880375,1765961432389,-300.0,0.00014095,2]
[398880376,1765961432399,-300.0,0.00014095,2]
[398880377,1765961432409,-300.0,0.00014095,2]
[398880378,1765961432419,-300.0,0.00014095,2]
[398880379,1765961432428,-300.0,0.00014095,2]
[398880380,1765961432437,-300.0,0.00014095,2]
[398880381,1765961432446,-300.0,0.00014095,2]
[398880382,1765961432456,-300.0,0.00014095,2]
[398880383,1765961432465,-300.0,0.00014095,2]
[398880384,1765961432474,-300.0,0.00014095,2]
[398880385,1765961432483,-90.6370467,0.00014376,2]
[398880413,1765961438305,-476.32654036,0.00014376,2]
[398880780,1765961443519,-13.60583441,0.00014376,2]
[398880782,1765961443535,-19.43057853,0.00014376,2]
[398880784,1765961443544,-260.82561875,0.00015206,2]
[398880786,1765961443554,-720.0,0.00015813,2]
[398880788,1765961443563,-300.61257754,0.00017206,2]
[398880790,1765961443572,-864.0,0.00017395,2]
[398880792,1765961443582,-2000.0,0.00017793,3]
[398880794,1765961443591,-342.56749348,0.00018,2]
[398881061,1765961707708,-160.6,0.0001,2]
[398881062,1765961707734,-165.769371,0.000177,2]
[398881063,1765961707758,-165.769371,0.00017878,2]
[398881064,1765961707782,-327.83284034,0.00018,2]
[398881065,1765961707805,-198.08824625,0.00018445,2]
[398881066,1765961707829,-1200.0,0.00018699,2]
[398881067,1765961707852,-300.0,0.00018699,2]
[398881068,1765961707876,-300.0,0.00018699,2]
[398881069,1765961707900,-191.0,0.00018699,2]
[398881070,1765961707925,-237.46360893,0.00018699,2]
[398881071,1765961707948,-238.86293143,0.00018699,2]
[398881072,1765961707972,-1001.0,0.000187,2]
[398881073,1765961707998,-1000.0,0.000187,2]
[398881074,1765961708028,-155.3646378,0.000188,2]
[398881075,1765961708056,-166.6017411,0.00018867,2]
[398881076,1765961708083,-299.58325084,0.00018867,2]
[398881077,1765961708108,-219.09992727,0.00018867,2]
[398881078,1765961708134,-232.84161045,0.00018867,2]
[398881079,1765961708164,-2000.0,0.00018893,4]
[398881080,1765961708189,-150.0,0.00018924,5]
[398881081,1765961708214,-158.18575089,0.00018924,5]
[398881082,1765961708239,-150.0,0.00018924,5]
[398881083,1765961708264,-247.10600825,0.00018935,2]
[398881084,1765961708288,-153.0,0.0001896,2]
[398881085,1765961708312,-153.0,0.0001896,2]
[398881086,1765961708337,-153.3464766,0.0001896,2]
[398881087,1765961708360,-153.0,0.0001896,2]
[398881088,1765961708386,-4999.12843289,0.00018973,2]
[398881089,1765961708410,-2000.0,0.00018999,2]
[398881090,1765961708434,-151.0,0.00019,2]
[398881091,1765961708458,-179.36038715,0.00019,2]
[398881092,1765961708481,-1000.0,0.00019,2]
[398881093,1765961708504,-1000.0,0.00019,2]
[398881094,1765961708530,-820.59243328,0.00019,2]
[398881095,1765961708554,-101.14423151,0.00019,2]
[398881096,1765961708578,-190.53,0.00019,10]
[398881097,1765961708602,-500.0,0.00019,2]
[398881098,1765961708626,-150.0,0.00019061,5]
[398881099,1765961708899,-150.0,0.00019061,5]
[398881100,1765961708933,-300.0,0.00019073,10]
[398881101,1765961708961,-300.0,0.00019073,10]
[398881102,1765961708991,-300.0,0.00019073,10]
[398881103,1765961709020,-300.0,0.00019073,10]
[398881104,1765961709049,-300.0,0.00019073,10]
[398881105,1765961709077,-300.0,0.00019073,10]
[398881106,1765961709106,-300.0,0.00019073,10]
[398881107,1765961709134,-300.0,0.00019073,10]
[398881108,1765961709167,-300.0,0.00019073,10]
[398881109,1765961709195,-300.0,0.00019073,10]
[398881110,1765961709223,-300.0,0.00019073,10]
[398881111,1765961709250,-300.0,0.00019073,10]
[398881112,1765961709279,-280.72874302,0.00019073,10]
[398881115,1765962137649,-180.0,9.801e-05,2]
[398881118,1765962359523,10101.36880883,0.00019,120]
[398881119,1765962444148,-539.6,9.703e-05,2]
[398881120,1765962444170,-213.58500794,9.801e-05,2]
[398881121,1765962444190,-559.0,9.9e-05,2]
[398881122,1765962444209,-252.03030936,0.00011801,2]
[398881123,1765962444229,-290.47561079,0.00013801,2]
[398881124,1765962444250,-328.92091222,0.00015802,2]
[398881125,1765962444270,-367.36621365,0.00017802,2]
[398881126,1765962444290,-219.52229415,0.00018237,2]
[398881127,1765962444311,-198.08824625,0.00018545,2]
[398881128,1765962444331,-1200.0,0.00018698,2]
[398881129,1765962444350,-300.0,0.00018699,2]
[398881130,1765962444370,-300.0,0.00018897,2]
[398881131,1765962444390,-1001.0,0.00018898,2]
[398881132,1765962444409,-874.03700191,0.00018898,2]
[398881147,1765962488999,172.5829857,9.04e-05,2]
[398881202,1765962632538,-500.0,0.00037537,120]
[398881203,1765962632564,-500.0,0.00037537,120]
[398881204,1765962632590,-500.0,0.00037537,120]
[398881205,1765962632616,-500.0,0.00037537,120]
[398881206,1765962632640,-500.0,0.00037537,120]
[398881207,1765962632664,-500.0,0.00037537,120]
[398881208,1765962632689,-500.0,0.00037537,120]
[398881209,1765962632715,-500.0,0.00037537,120]
[398881210,1765962632739,-500.0,0.00037537,120]
[398881211,1765962632763,-262.4,0.00037537,120]
[398881212,1765962632788,-500.0,0.00037537,120]
[398881213,1765962632813,-500.0,0.00037537,120]
[398881214,1765962632841,-500.0,0.00037537,120]
[398881215,1765962632864,-500.0,0.00037537,120]
[398881216,1765962632889,-500.0,0.00037537,120]
[398881217,1765962632912,-500.0,0.00037537,120]
[398881218,1765962632934,-500.0,0.00037537,120]
[398881219,1765962632958,-500.0,0.00037537,120]
[398881220,1765962632981,-500.0,0.00037537,120]
[398881221,1765962633003,-500.0,0.00037537,120]
[398881222,1765962633026,-500.0,0.00037537,120]
[398881223,1765962633049,-500.0,0.00037537,120]
[398881224,1765962633073,-500.0,0.00037537,120]
[398881225,1765962633097,-500.0,0.00037537,120]
[398881226,1765962633122,-500.0,0.00037537,120]
[398881227,1765962633145,-500.0,0.00037537,120]
[398881228,1765962633170,-500.0,0.00037537,120]
[398881229,1765962633195,-500.0,0.00037537,120]
[398881230,1765962633220,-500.0,0.00037537,120]
[398881232,1765962633244,-500.0,0.00037537,120]
[398881235,1765962633274,-500.0,0.00037537,120]
[398881239,1765962633300,-317.95,0.00037537,120]
[398881241,1765962633325,-500.0,0.00037537,120]
[398881242,1765962633351,-500.0,0.00037537,120]
[398881243,1765962633378,-500.0,0.00037537,120]
[398881244,1765962633404,-500.0,0.00037537,120]
[398881245,1765962633430,-500.0,0.00037537,120]
[398881246,1765962633456,-500.0,0.00037537,120]
[398881247,1765962633482,-343.4,0.00037537,120]
[398881248,1765962633506,-500.0,0.00037537,120]
[398881249,1765962633530,-500.0,0.00037537,120]
[398881250,1765962633554,-500.0,0.00037537,120]
[398881251,1765962633579,-500.0,0.00037537,120]
[398881252,1765962633602,-500.0,0.00037537,120]
[398881253,1765962633626,-500.0,0.00037537,120]
[398881254,1765962633650,-500.0,0.00037537,120]
[398881255,1765962633675,-500.0,0.00037537,120]
[398881256,1765962633700,-514.08341844,0.00037537,120]
[398881257,1765962633724,-500.0,0.00037537,120]
[398881258,1765962633748,-619.75,0.00037537,120]
[398881259,1765962633772,-500.0,0.00037537,120]
[398881260,1765962633796,-500.0,0.00037537,120]
[398881261,1765962633820,-500.0,0.00037537,120]
[398881262,1765962633848,-500.0,0.00037537,120]
[398881263,1765962633873,-500.0,0.00037537,120]
[398881264,1765962633898,-500.0,0.00037537,120]
[398881265,1765962633922,-500.0,0.00037537,120]
[398881266,1765962633945,-500.0,0.00037537,120]
[398881267,1765962633969,-500.0,0.00037537,120]
[398881268,1765962633993,-500.0,0.00037537,120]
[398881269,1765962634016,-500.0,0.00037537,120]
[398881270,1765962634041,-500.0,0.00037537,120]
[398881271,1765962634068,-500.0,0.00037537,120]
[398881272,1765962634092,-500.0,0.00037537,120]
[398881273,1765962634116,-500.0,0.00037537,120]
[398881274,1765962634140,-500.0,0.00037537,120]
[398881275,1765962634166,-500.0,0.00037537,120]
[398881276,1765962634192,-231.13,0.00037537,120]
[398881277,1765962634218,-500.0,0.00037537,120]
[398881278,1765962634244,-500.0,0.00037537,120]
[398881279,1765962634269,-500.0,0.00037537,120]
[398881280,1765962634296,-383.06,0.00037537,120]
[398881281,1765962634323,-319.18601548,0.00037537,120]
[398881282,1765962634347,-500.0,0.00037537,120]
[398881283,1765962634371,-500.0,0.00037537,120]
[398881284,1765962634396,-500.0,0.00037537,120]
[398881285,1765962634420,-500.0,0.00037537,120]
[398881286,1765962634445,-500.0,0.00037537,120]
[398881287,1765962634469,-500.0,0.00037537,120]
[398881288,1765962634494,-500.0,0.00037537,120]
[398881289,1765962634520,-234.78,0.00037537,120]
[398881290,1765962634545,-500.0,0.00037537,120]
[398881291,1765962634571,-500.0,0.00037537,120]
[398881292,1765962634595,-500.0,0.00037537,120]
[398881293,1765962634619,-500.0,0.00037537,120]
[398881294,1765962634645,-500.0,0.00037537,120]
[398881295,1765962634669,-500.0,0.00037537,120]
[398881296,1765962634694,-500.0,0.00037537,120]
[398881297,1765962634719,-500.0,0.00037537,120]
[398881298,1765962634743,-186.25749805,0.00037537,120]
[398881299,1765962634767,-500.0,0.00037537,120]
[398881300,1765962634791,-500.0,0.00037537,120]
[398881301,1765962634969,-500.0,0.00037537,120]
[398881302,1765962634995,-500.0,0.00037537,120]
[398881303,1765962635019,-500.0,0.00037537,120]
[398881304,1765962635044,-500.0,0.00037537,120]
[398881305,1765962635067,-500.0,0.00037537,120]
[398881306,1765962635092,-500.0,0.00037537,120]
[398881307,1765962635117,-500.0,0.00037537,120]
[398881308,1765962635141,-500.0,0.00037537,120]
[398881309,1765962635166,-500.0,0.00037537,120]
[398881310,1765962635192,-500.0,0.00037537,120]
[398881311,1765962635219,-500.0,0.00037537,120]
[398881312,1765962635245,-500.0,0.00037537,120]
[398881313,1765962635271,-500.0,0.00037537,120]
[398881314,1765962635296,-446.96,0.00037537,120]
[398881315,1765962635321,-500.0,0.00037537,120]
[398881316,1765962635346,-500.0,0.00037537,120]
[398881317,1765962635371,-500.0,0.00037537,120]
[398881318,1765962635397,-500.0,0.00037537,120]
[398881319,1765962635422,-500.0,0.00037537,120]
[398881320,1765962635447,-500.0,0.00037537,120]
[398881321,1765962635473,-500.0,0.00037537,120]
[398881322,1765962635498,-500.0,0.00037537,120]
[398881323,1765962635522,-500.0,0.00037537,120]
[398881324,1765962635547,-500.0,0.00037537,120]
[398881325,1765962635572,-500.0,0.00037537,120]
[398881326,1765962635598,-500.0,0.00037537,120]
[398881327,1765962635622,-500.0,0.00037537,120]
[398881328,1765962635647,-500.0,0.00037537,120]
[398881329,1765962635672,-208.58,0.00037537,120]
[398881330,1765962635697,-500.0,0.00037537,120]
[398881331,1765962635721,-500.0,0.00037537,120]
[398881332,1765962635744,-500.0,0.00037537,120]
[398881333,1765962635768,-500.0,0.00037537,120]
[398881334,1765962635792,-619.84,0.00037537,120]
[398881335,1765962635815,-500.0,0.00037537,120]
[398881336,1765962635845,-500.0,0.00037537,120]
[398881337,1765962635871,-500.0,0.00037537,120]
[398881338,1765962635895,-500.0,0.00037537,120]
[398881339,1765962635921,-500.0,0.00037537,120]
[398881340,1765962635945,-500.0,0.00037537,120]
[398881341,1765962635969,-500.0,0.00037537,120]
[398881342,1765962635996,-500.0,0.00037537,120]
[398881343,1765962636020,-500.0,0.00037537,120]
[398881344,1765962636045,-920.02,0.00037537,120]
[398881345,1765962636071,-920.02,0.00037537,120]
[398881346,1765962636097,-387.17,0.00037537,120]
[398881347,1765962636122,-500.0,0.00037537,120]
[398881348,1765962636148,-500.0,0.00037537,120]
[398881349,1765962636177,-500.0,0.00037537,120]
[398881350,1765962636203,-500.0,0.00037537,120]
[398881351,1765962636228,-500.0,0.00037537,120]
[398881352,1765962636253,-500.0,0.00037537,120]
[398881353,1765962636279,-500.0,0.00037537,120]
[398881354,1765962636307,-500.0,0.00037537,120]
[398881355,1765962636332,-500.0,0.00037537,120]
[398881356,1765962636357,-500.0,0.00037537,120]
[398881357,1765962636383,-500.0,0.00037537,120]
[398881358,1765962636407,-500.0,0.00037537,120]
[398881359,1765962636432,-500.0,0.00037537,120]
[398881360,1765962636457,-500.0,0.00037537,120]
[398881361,1765962636484,-500.0,0.00037537,120]
[398881362,1765962636510,-500.0,0.00037537,120]
[398881363,1765962636535,-500.0,0.00037537,120]
[398881364,1765962636560,-500.0,0.00037537,120]
[398881365,1765962636585,-219.53,0.00037537,120]
[398881366,1765962636608,-500.0,0.00037537,120]
[398881367,1765962636636,-500.0,0.00037537,120]
[398881368,1765962636667,-500.0,0.00037537,120]
[398881369,1765962636691,-500.0,0.00037537,120]
[398881370,1765962636715,-500.0,0.00037537,120]
[398881371,1765962636739,-500.0,0.00037537,120]
[398881372,1765962636764,-500.0,0.00037537,120]
[398881373,1765962636788,-500.0,0.00037537,120]
[398881374,1765962636813,-500.0,0.00037537,120]
[398881375,1765962636840,-500.0,0.00037537,120]
[398881376,1765962636864,-500.0,0.00037537,120]
[398881377,1765962636890,-500.0,0.00037537,120]
[398881378,1765962636916,-500.0,0.00037537,120]
[398881379,1765962636941,-500.0,0.00037537,120]
[398881380,1765962636966,-500.0,0.00037537,120]
[398881381,1765962636990,-500.0,0.00037537,120]
[398881382,1765962637014,-500.0,0.00037537,120]
[398881383,1765962637040,-500.0,0.00037537,120]
[398881384,1765962637065,-500.0,0.00037537,120]
[398881385,1765962637091,-265.47704142,0.00037537,120]
[398881386,1765962637116,-500.0,0.00037537,120]
[398881387,1765962637142,-500.0,0.00037537,120]
[398881388,1765962637170,-519.38,0.00037537,120]
[398881389,1765962637195,-500.0,0.00037537,120]
[398881390,1765962637220,-500.0,0.00037537,120]
[398881391,1765962637246,-500.0,0.00037537,120]
[398881392,1765962637271,-500.0,0.00037537,120]
[398881393,1765962637296,-500.0,0.00037537,120]
[398881394,1765962637322,-500.0,0.00037537,120]
[398881395,1765962637347,-500.0,0.00037537,120]
[398881396,1765962637520,-500.0,0.00037537,120]
[398881397,1765962637549,-500.0,0.00037537,120]
[398881398,1765962637576,-500.0,0.00037537,120]
[398881399,1765962637603,-500.0,0.00037537,120]
[398881400,1765962637629,-500.0,0.00037537,120]
[398881401,1765962637656,-500.0,0.00037537,120]
[398881402,1765962637682,-500.0,0.00037537,120]
[398881403,1765962637708,-500.0,0.00037537,120]
[398881404,1765962637733,-500.0,0.00037537,120]
[398881405,1765962637759,-500.0,0.00037537,120]
[398881406,1765962637784,-500.0,0.00037537,120]
[398881407,1765962637808,-500.0,0.00037537,120]
[398881408,1765962637836,-254.39747607,0.00037537,120]
[398881409,1765962637862,-500.0,0.00037537,120]
[398881410,1765962637886,-500.0,0.00037537,120]
[398881411,1765962637911,-500.0,0.00037537,120]
[398881412,1765962637937,-500.0,0.00037537,120]
[398881413,1765962637963,-500.0,0.00037537,120]
[398881414,1765962637988,-500.0,0.00037537,120]
[398881415,1765962638012,-500.0,0.00037537,120]
[398881416,1765962638037,-226.0,0.00037537,120]
[398881417,1765962638063,-500.0,0.00037537,120]
[398881418,1765962638095,-500.0,0.00037537,120]
[398881419,1765962638121,-500.0,0.00037537,7]
[398881420,1765962638146,-500.0,0.00037537,120]
[398881421,1765962638173,-500.0,0.00037537,7]
[398881422,1765962638201,-467.56,0.00037537,120]
[398881423,1765962638231,-500.0,0.00037537,7]
[398881426,1765962638257,-500.0,0.00037537,7]
[398881430,1765962638283,-500.0,0.00037537,7]
[398881433,1765962638309,-500.0,0.00037537,7]
[398881437,1765962638334,-500.0,0.00037537,7]
[398881441,1765962638362,-500.0,0.00037537,120]
[398881445,1765962638389,-500.0,0.00037537,7]
[398881449,1765962638415,-500.0,0.00037537,120]
[398881452,1765962638440,-348.08,0.00037537,7]
[398881456,1765962638465,-203.86,0.00037537,120]
[398881460,1765962638491,-500.0,0.00037537,120]
[398881463,1765962638516,-500.0,0.00037537,120]
[398881467,1765962638541,-500.0,0.00037537,120]
[398881470,1765962638566,-500.0,0.00037537,120]
[398881474,1765962638591,-500.0,0.00037537,120]
[398881478,1765962638616,-361.56,0.00037537,120]
[398881481,1765962638641,-500.0,0.00037537,120]
[398881485,1765962638667,-500.0,0.00037537,120]
[398881489,1765962638692,-500.0,0.00037537,120]
[398881493,1765962638717,-500.0,0.00037537,30]
[398881496,1765962638743,-500.0,0.00037537,30]
[398881500,1765962638769,-500.0,0.00037537,120]
[398881504,1765962638795,-500.0,0.00037537,30]
[398881508,1765962638821,-500.0,0.00037537,120]
[398881511,1765962638850,-500.0,0.00037537,120]
[398881515,1765962638876,-500.0,0.00037537,30]
[398881519,1765962638902,-500.0,0.00037537,120]
[398881522,1765962638927,-500.0,0.00037537,120]
[398881526,1765962638952,-500.0,0.00037537,30]
[398881530,1765962638977,-500.0,0.00037537,120]
[398881533,1765962639003,-500.0,0.00037537,120]
[398881537,1765962639028,-500.0,0.00037537,120]
[398881540,1765962639052,-500.0,0.00037537,30]
[398881544,1765962639077,-500.0,0.00037537,120]
[398881547,1765962639102,-500.0,0.00037537,120]
[398881551,1765962639127,-500.0,0.00037537,120]
[398881555,1765962639152,-500.0,0.00037537,30]
[398881558,1765962639177,-500.0,0.00037537,120]
[398881562,1765962639201,-500.0,0.00037537,120]
[398881565,1765962639226,-500.0,0.00037537,120]
[398881569,1765962639249,-500.0,0.00037537,30]
[398881572,1765962639274,-257.39,0.00037537,120]
[398881576,1765962639299,-500.0,0.00037537,120]
[398881580,1765962639323,-500.0,0.00037537,120]
[398881583,1765962639348,-309.88,0.00037537,30]
[398881587,1765962639374,-500.0,0.00037537,120]
[398881591,1765962639398,-500.0,0.00037537,120]
[398881594,1765962639424,-500.0,0.00037537,120]
[398881598,1765962639450,-500.0,0.00037537,120]
[398881602,1765962639476,-500.0,0.00037537,120]
[398881605,1765962639501,-500.0,0.00037537,120]
[398881609,1765962639526,-500.0,0.00037537,120]
[398881612,1765962639550,-500.0,0.00037537,120]
[398881616,1765962639576,-500.0,0.00037537,120]
[398881620,1765962639600,-227.51638565,0.00037537,120]
[398881623,1765962639623,-500.0,0.00037537,120]
[398881627,1765962639648,-500.0,0.00037537,120]
[398881630,1765962639673,-500.0,0.00037537,120]
[398881634,1765962639699,-500.0,0.00037537,120]
[398881638,1765962639723,-500.0,0.00037537,120]
[398881641,1765962639748,-500.0,0.00037537,120]
[398881644,1765962639772,-500.0,0.00037537,120]
[398881648,1765962639796,-500.0,0.00037537,120]
[398881652,1765962639820,-500.0,0.00037537,120]
[398881655,1765962639848,-500.0,0.00037537,120]
[398881659,1765962639875,-201.5,0.00037537,120]
[398881663,1765962639902,-500.0,0.00037537,120]
[398881682,1765962640072,-500.0,0.00037537,120]
[398881686,1765962640101,-559.66,0.00037537,120]
[398881690,1765962640126,-500.0,0.00037537,120]
[398881695,1765962640154,-500.0,0.00037537,120]
[398881698,1765962640180,-500.0,0.00037537,120]
[398881702,1765962640206,-500.0,0.00037537,120]
[398881706,1765962640231,-500.0,0.00037537,120]
[398881709,1765962640257,-203.28,0.00037537,120]
[398881713,1765962640283,-639.7,0.00037537,120]
[398881717,1765962640308,-500.0,0.00037537,120]
[398881721,1765962640332,-500.0,0.00037537,120]
[398881724,1765962640357,-500.0,0.00037537,120]
[398881728,1765962640382,-500.0,0.00037537,120]
[398881732,1765962640405,-500.0,0.00037537,120]
[398881736,1765962640429,-500.0,0.00037537,120]
[398881740,1765962640453,-500.0,0.00037537,120]
[398881744,1765962640476,-500.0,0.00037537,120]
[398881748,1765962640501,-500.0,0.00037537,120]
[398881752,1765962640525,-561.27484385,0.00037537,120]
[398881756,1765962640551,-500.0,0.00037537,120]
[398881760,1765962640578,-500.0,0.00037537,120]
[398881763,1765962640604,-500.0,0.00037537,120]
[398881767,1765962640630,-401.9,0.00037537,120]
[398881771,1765962640655,-500.0,0.00037537,120]
[398881775,1765962640679,-500.0,0.00037537,120]
[398881778,1765962640703,-500.0,0.00037537,120]
[398881783,1765962640728,-500.0,0.00037537,120]
[398881787,1765962640753,-500.0,0.00037537,120]
[398881791,1765962640780,-500.0,0.00037537,120]
[398881794,1765962640805,-500.0,0.00037537,120]
[398881798,1765962640834,-500.0,0.00037537,120]
[398881802,1765962640859,-500.0,0.00037537,120]
[398881805,1765962640885,-500.0,0.00037537,120]
[398881809,1765962640910,-500.0,0.00037537,120]
[398881813,1765962640937,-500.0,0.00037537,120]
[398881817,1765962640962,-500.0,0.00037537,120]
[398881820,1765962640989,-500.0,0.00037537,120]
[398881824,1765962641014,-500.0,0.00037537,120]
[398881828,1765962641040,-500.0,0.00037537,120]
[398881832,1765962641065,-500.0,0.00037537,120]
[398881836,1765962641090,-500.0,0.00037537,120]
[398881839,1765962641115,-500.0,0.00037537,120]